bitfinex-derivatives/quotes_BTCF0:USTF0_20251011
["timestamp","ask_amount","ask_price","bid_price","bid_amount"]
[1760147039532,0.02361,111410.0,111400.0,0.4808]
[1760147039732,0.02361,111420.0,111400.0,0.99304987]
[1760147039934,0.02361,111420.0,111410.0,0.3608]
[1760147040136,0.02361,111430.0,111410.0,0.4908]
[1760147040330,0.02361,111430.0,111410.0,0.5714114]
[1760147040529,0.02361,111430.0,111420.0,0.0896068]
[1760147040739,0.03680196,111440.0,111420.0,0.5634068]
[1760147040938,0.03680196,111440.0,111430.0,0.3608]
[1760147041131,0.01256196,111440.0,111430.0,0.9713988]
[1760147041332,0.00052,111440.0,111430.0,0.99403013]
[1760147041540,0.00052,111440.0,111430.0,0.9940249]
[1760147042043,0.01262065,111440.0,111430.0,0.9713988]
[1760147042739,0.00052,111440.0,111430.0,1.38982334]
[1760147042940,0.00052,111440.0,111430.0,1.41278559]
[1760147043242,0.00052,111440.0,111430.0,0.9713988]
[1760147043833,0.00052,111440.0,111430.0,0.5047559]
[1760147044037,0.0901107,111440.0,111430.0,0.4818]
[1760147044334,0.00052,111440.0,111430.0,0.4818]
[1760147044741,1.29294524,111440.0,111430.0,0.121]
[1760147044940,0.8745207,111440.0,111430.0,0.06448]
[1760147045243,0.1137207,111440.0,111430.0,0.06448]
[1760147045436,0.02413,111440.0,111430.0,0.42528]
[1760147045633,0.00052,111440.0,111430.0,0.42528]
[1760147046142,0.02413,111440.0,111430.0,0.42528]
[1760147046345,0.00052,111440.0,111430.0,0.42528]
[1760147046836,0.53214524,111440.0,111430.0,0.06448]
[1760147047037,1.29294524,111440.0,111430.0,0.06448]
[1760147047231,0.53214524,111440.0,111430.0,0.06448]
[1760147047432,0.89294524,111440.0,111430.0,0.06448]
[1760147047632,1.29294524,111440.0,111430.0,0.06448]
[1760147048233,0.89294524,111440.0,111430.0,0.06448]
[1760147048433,1.29294524,111440.0,111410.0,0.3608]
[1760147048639,0.02286,111400.0,111390.0,0.3608]
[1760147048842,0.02286,111400.0,111390.0,0.50400686]
[1760147049843,0.4732829,111400.0,111390.0,0.14320686]
[1760147050039,0.53090744,111400.0,111390.0,0.14320686]
[1760147050241,0.89170744,111400.0,111390.0,0.14320686]
[1760147050443,1.29170744,111400.0,111390.0,0.14320686]
[1760147050642,1.29170744,111400.0,111390.0,0.12]
[1760147053048,0.89170744,111400.0,111390.0,0.12]
[1760147053447,0.4732829,111400.0,111390.0,0.12]
[1760147053751,0.89170744,111400.0,111390.0,0.12]
[1760147055143,0.89170744,111400.0,111390.0,0.14306449]
[1760147055848,0.89170744,111400.0,111390.0,0.05896266]
[1760147056150,0.89170744,111400.0,111380.0,9.079e-05]
[1760147056151,0.1124915,111390.0,111380.0,9.079e-05]
[1760147056358,0.89171604,111390.0,111380.0,0.14009079]
[1760147057244,0.80208454,111390.0,111380.0,0.14009079]
[1760147057448,0.02286,111400.0,111380.0,0.90089079]
[1760147057753,0.02286,111400.0,111390.0,0.3608]
[1760147057958,0.02338,111400.0,111390.0,0.4908]
[1760147058752,0.1130036,111400.0,111390.0,0.4908]
[1760147059052,0.1130036,111400.0,111390.0,0.13]
[1760147059053,0.53142814,111400.0,111390.0,0.13]
[1760147059244,0.89222814,111400.0,111390.0,0.13]
[1760147060451,0.4738036,111400.0,111390.0,0.13]
[1760147060756,0.89222814,111400.0,111390.0,0.13]
[1760147060959,0.38418,111400.0,111390.0,0.13]
[1760147061150,0.02338,111400.0,111390.0,0.13]
[1760147061456,0.4738069,111400.0,111390.0,0.13]
[1760147061757,0.1130069,111400.0,111390.0,0.13]
[1760147062154,0.89223144,111400.0,111390.0,0.13]
[1760147062857,0.93248144,111400.0,111390.0,0.13]
[1760147063265,1.33248144,111400.0,111390.0,0.13]
[1760147063558,1.24285454,111400.0,111390.0,0.13]
[1760147064052,1.33247884,111400.0,111390.0,0.13]
[1760147064449,0.06363,111400.0,111390.0,0.13777]
[1760147064650,0.06363,111400.0,111390.0,0.13]
[1760147064651,0.93247924,111400.0,111390.0,0.13]
[1760147065249,1.33247924,111400.0,111390.0,0.13]
[1760147065653,0.1527423,111390.0,111380.0,9.079e-05]
[1760147065852,1.33196684,111390.0,111380.0,9.079e-05]
[1760147066052,1.33196684,111390.0,111380.0,0.12]
[1760147066250,1.33196684,111390.0,111380.0,0.0224507]
[1760147066462,0.112525,111350.0,111340.0,0.02409154]
[1760147066663,0.89174954,111350.0,111340.0,0.14369278]
[1760147066954,1.29174954,111350.0,111340.0,0.14369278]
[1760147067256,1.31345082,111350.0,111340.0,0.12]
[1760147067452,0.89502628,111350.0,111340.0,0.12]
[1760147067657,0.49502628,111350.0,111340.0,0.12]
[1760147067858,0.91345082,111350.0,111340.0,0.14367912]
[1760147068359,1.31345082,111350.0,111340.0,0.12]
[1760147068654,0.89502628,111350.0,111340.0,0.12]
[1760147068860,1.31345082,111350.0,111340.0,0.12]
[1760147069355,0.1125513,111320.0,111300.0,0.02409154]
[1760147069561,0.89239473,111310.0,111300.0,0.18774497]
[1760147069857,0.89239473,111310.0,111300.0,0.16365343]
[1760147070753,0.89239473,111310.0,111300.0,0.02365343]
[1760147071053,0.36141079,111310.0,111300.0,0.03365343]
[1760147071251,0.77983533,111310.0,111300.0,0.03365343]
[1760147071653,0.41903533,111310.0,111300.0,0.03365343]
[1760147071855,0.77983533,111310.0,111300.0,0.03365343]
[1760147072258,0.53159463,111310.0,111300.0,0.03365343]
[1760147072557,0.00061079,111310.0,111300.0,0.03365343]
[1760147072757,0.00061079,111310.0,111300.0,0.79445343]
[1760147072960,0.00061079,111310.0,111300.0,0.93057227]
[1760147073955,0.00061079,111310.0,111300.0,0.53048082]
[1760147074359,0.00061079,111310.0,111300.0,0.53860288]
[1760147074765,0.00061079,111310.0,111300.0,1.35702742]
[1760147075061,0.00061079,111310.0,111300.0,0.08809548]
[1760147075658,0.00061079,111310.0,111300.0,0.84889548]
[1760147075963,0.00061079,111310.0,111300.0,0.93860288]
[1760147076154,0.00061079,111310.0,111300.0,0.81677343]
[1760147076464,0.09031019,111310.0,111300.0,0.08799208]
[1760147076758,0.45111469,111310.0,111300.0,0.06567208]
[1760147076963,0.89239923,111310.0,111300.0,0.06567208]
[1760147077159,0.89239923,111310.0,111300.0,0.05766861]
[1760147077663,1.29239923,111310.0,111300.0,0.03365343]
[1760147078361,1.29239923,111310.0,111300.0,0.02365343]
[1760147078866,1.29239923,111310.0,111300.0,0.03365343]
[1760147079061,1.29239923,111310.0,111300.0,0.02365343]
[1760147079260,1.29239923,111310.0,111300.0,3.43e-06]
[1760147079459,0.1122617,111300.0,111290.0,0.00317619]
[1760147079654,1.29148624,111300.0,111290.0,0.12317619]
[1760147079861,0.0897198,111290.0,111280.0,9.82e-05]
[1760147080165,0.86894434,111290.0,111280.0,9.82e-05]
[1760147080363,1.26894434,111290.0,111280.0,9.82e-05]
[1760147080665,0.41842454,111290.0,111280.0,0.099826]
[1760147080856,0.3608832,111300.0,111280.0,0.14598118]
[1760147081060,8.32e-05,111300.0,111290.0,0.1118597]
[1760147081254,8.32e-05,111300.0,111290.0,0.13214]
[1760147081463,1.17930774,111300.0,111290.0,0.11]
[1760147081856,0.3608832,111300.0,111290.0,0.11]
[1760147082064,0.41850774,111300.0,111290.0,0.11]
[1760147082967,0.86901934,111300.0,111290.0,0.11]
[1760147083160,1.26901934,111300.0,111290.0,0.11]
[1760147083365,0.8505948,111300.0,111290.0,0.11]
[1760147083564,1.17930774,111300.0,111290.0,0.11]
[1760147083766,0.77930774,111300.0,111290.0,0.11]
[1760147083959,0.41850774,111300.0,111290.0,0.13214]
[1760147084265,0.77930774,111300.0,111290.0,0.13214]
[1760147084664,0.41850774,111300.0,111290.0,0.15615518]
[1760147084864,0.86901934,111300.0,111290.0,0.13401518]
[1760147085661,1.28267934,111300.0,111290.0,0.13401518]
[1760147085864,1.28267934,111300.0,111290.0,0.01]
[1760147086068,0.0897197,111290.0,111280.0,0.02411338]
[1760147086271,0.88260424,111290.0,111280.0,0.08755338]
[1760147087270,0.88260424,111290.0,111280.0,0.14]
[1760147087470,0.88260424,111290.0,111280.0,0.11]
[1760147087864,1.2827079,111290.0,111280.0,0.11]
[1760147088061,0.0897433,111270.0,111250.0,0.05415865]
[1760147088274,0.36087329,111260.0,111250.0,0.21036445]
[1760147088469,0.86904173,111260.0,111250.0,0.11545379]
[1760147088664,1.28270173,111260.0,111250.0,0.08344]
[1760147088865,0.41849783,111260.0,111250.0,0.44902]
[1760147089069,0.77929783,111260.0,111250.0,0.538772]
[1760147089266,7.329e-05,111260.0,111250.0,0.93158579]
[1760147089467,7.329e-05,111260.0,111250.0,0.538772]
[1760147089671,7.329e-05,111260.0,111250.0,0.94779645]
[1760147089867,7.329e-05,111260.0,111250.0,0.899572]
[1760147090065,0.3608,111290.0,111280.0,0.02216]
[1760147090272,0.3608,111290.0,111280.0,0.15216]
[1760147090474,0.3830571,111300.0,111290.0,0.02216]
[1760147090777,0.4727697,111300.0,111290.0,0.14216]
[1760147091174,0.47286627,111300.0,111290.0,0.14216]
[1760147091479,0.83006145,111300.0,111290.0,0.12]
[1760147091872,1.24372145,111300.0,111290.0,0.12]
[1760147092468,0.83006145,111300.0,111290.0,0.12]
[1760147092674,0.83006115,111300.0,111290.0,0.14216]
[1760147093082,0.47286597,111300.0,111290.0,0.14216]
[1760147093380,9.657e-05,111300.0,111290.0,0.67992704]
[1760147093573,9.657e-05,111300.0,111290.0,0.59020694]
[1760147093780,9.657e-05,111300.0,111290.0,0.9926801]
[1760147094380,9.657e-05,111300.0,111290.0,1.04085268]
[1760147094872,9.657e-05,111300.0,111290.0,0.53507539]
[1760147095073,9.657e-05,111300.0,111290.0,0.93507539]
[1760147095268,9.657e-05,111300.0,111290.0,0.53507539]
[1760147095481,0.08980887,111300.0,111290.0,0.53507539]
[1760147095772,0.08980887,111300.0,111290.0,0.17427539]
[1760147095773,0.45060887,111300.0,111290.0,0.17427539]
[1760147096575,0.45060887,111300.0,111290.0,0.57427539]
[1760147096779,0.45060887,111300.0,111290.0,1.04085298]
[1760147096780,9.657e-05,111300.0,111290.0,1.04085298]
[1760147097275,0.00052,111310.0,111300.0,0.1118723]
[1760147097579,0.00052,111310.0,111300.0,0.63483489]
[1760147097767,0.00052,111310.0,111300.0,1.05091618]
[1760147097969,0.0902243,111310.0,111300.0,0.94512284]
[1760147098571,0.00052,111310.0,111300.0,1.03483514]
[1760147098784,0.0896909,111330.0,111320.0,0.02216]
[1760147098978,0.47323298,111330.0,111320.0,0.15216]
[1760147099682,1.23042816,111330.0,111320.0,0.13]
[1760147100370,1.23042816,111330.0,111320.0,0.0068663]
[1760147100371,1.27927816,111330.0,111320.0,0.0068663]
[1760147100577,0.1271324,111300.0,111290.0,0.05874]
[1760147100781,0.84512758,111300.0,111290.0,0.12]
[1760147100975,1.20770758,111300.0,111290.0,0.06344]
[1760147101179,1.21913758,111300.0,111290.0,0.06344]
[1760147101379,0.3608,111300.0,111290.0,0.0856]
[1760147101579,0.74073726,111330.0,111310.0,0.02216]
[1760147101779,0.83042636,111330.0,111320.0,0.02216]
[1760147102078,0.00052,111330.0,111320.0,0.16216]
[1760147102476,0.00052,111330.0,111320.0,0.2518563]
[1760147102677,0.88039243,111350.0,111320.0,0.2518563]
[1760147102678,0.07272185,111350.0,111340.0,0.0896801]
[1760147102982,0.00052,111350.0,111340.0,0.13216]
[1760147103183,0.4509921,111350.0,111340.0,0.53216]
[1760147103386,0.36132,111350.0,111340.0,0.53216]
[1760147103681,0.4509921,111350.0,111340.0,0.53216]
[1760147104082,0.07220753,111350.0,111340.0,0.9826401]
[1760147104675,0.04688807,111390.0,111380.0,0.02216]
[1760147104676,0.4504399,111390.0,111380.0,0.02216]
[1760147104876,0.089656,111370.0,111360.0,0.02216]
[1760147105082,0.52370828,111370.0,111360.0,0.15216]
[1760147105282,0.52370828,111370.0,111360.0,0.13]
[1760147105586,1.28090346,111370.0,111360.0,0.13]
[1760147105779,0.52010346,111370.0,111360.0,0.15216]
[1760147106087,0.52370828,111370.0,111360.0,0.13]
[1760147106285,0.52370828,111370.0,111360.0,0.15216]
[1760147106587,0.52370828,111370.0,111360.0,0.55216]
[1760147106788,0.07325228,111370.0,111360.0,0.55216]
[1760147106980,0.4504481,111380.0,111370.0,0.02216]
[1760147107176,0.02311,111390.0,111370.0,0.15216]
[1760147107383,0.00052,111390.0,111380.0,0.02216]
[1760147107582,0.00052,111390.0,111380.0,0.6126079]
[1760147107984,0.52140988,111390.0,111380.0,0.16216]
[1760147108179,0.4509599,111390.0,111380.0,0.16216]
[1760147108384,0.0901599,111390.0,111380.0,0.16216]
[1760147108583,0.0901597,111390.0,111380.0,0.16216]
[1760147109083,0.4509597,111390.0,111380.0,0.16216]
[1760147109590,0.4509597,111390.0,111380.0,0.14]
[1760147109791,0.4509597,111390.0,111380.0,0.54]
[1760147110386,0.80815488,111390.0,111380.0,0.14]
[1760147111783,0.4509597,111390.0,111380.0,0.14]
[1760147112182,0.43282404,111390.0,111380.0,0.14]
[1760147112381,0.07202404,111390.0,111380.0,0.56363]
[1760147112784,0.07202404,111390.0,111380.0,0.6532779]
[1760147113388,0.52246384,111390.0,111380.0,0.16363]
[1760147113588,0.43282404,111390.0,111380.0,0.16363]
[1760147113790,0.52246384,111390.0,111380.0,0.16363]
[1760147113986,0.90331902,111390.0,111380.0,0.14]
[1760147114393,0.87965902,111390.0,111380.0,0.14]
[1760147114596,0.52246384,111390.0,111380.0,0.14]
[1760147115288,0.54612384,111390.0,111380.0,0.14]
[1760147115689,0.0896639,111360.0,111350.0,0.02216]
[1760147115892,0.3608,111360.0,111350.0,0.13216]
[1760147116394,0.4504508,111380.0,111370.0,0.02363]
[1760147116694,0.3608,111380.0,111370.0,0.2332859]
[1760147116896,0.3608,111380.0,111370.0,0.6332859]
[1760147117093,0.52246394,111390.0,111380.0,0.02363]
[1760147117288,0.52246394,111390.0,111380.0,0.14363]
[1760147117494,0.87965912,111390.0,111380.0,0.12]
[1760147117694,1.30331912,111390.0,111380.0,0.12]
[1760147118092,0.089664,111360.0,111350.0,0.23216]
[1760147118297,0.450464,111360.0,111350.0,0.04216]
[1760147118700,0.450464,111360.0,111350.0,0.02]
[1760147118898,0.089664,111360.0,111350.0,0.04363]
[1760147119291,0.80765218,111370.0,111350.0,0.5333018]
[1760147119598,0.16166384,111390.0,111380.0,0.02363]
[1760147119799,0.07202404,111390.0,111380.0,0.14363]
[1760147120007,0.52246384,111390.0,111380.0,0.14363]
[1760147120509,0.43282404,111390.0,111380.0,0.6332779]
[1760147120800,0.43282404,111390.0,111380.0,0.14363]
[1760147121501,0.07202404,111390.0,111380.0,0.6332779]
[1760147121697,0.07202404,111390.0,111380.0,0.9940779]
[1760147122196,0.07202404,111390.0,111380.0,0.14363]
[1760147122197,0.52246384,111390.0,111380.0,0.14363]
[1760147122403,0.16166384,111390.0,111380.0,0.14363]
[1760147122602,0.52246384,111390.0,111380.0,0.14363]
[1760147122997,0.52246384,111390.0,111380.0,0.12]
[1760147122998,0.92246384,111390.0,111380.0,0.12]
[1760147123200,0.02366,111380.0,111340.0,0.02363]
[1760147123400,0.089664,111360.0,111350.0,0.02363]
[1760147123606,0.450464,111360.0,111350.0,0.13363]
[1760147123806,0.450464,111360.0,111350.0,0.11]
[1760147124002,0.874124,111360.0,111350.0,0.11]
[1760147124201,0.850464,111360.0,111350.0,0.11]
[1760147125906,0.4504592,111370.0,111350.0,0.2233011]
[1760147126204,0.52246634,111390.0,111370.0,0.1132859]
[1760147126504,0.52246634,111390.0,111380.0,0.02363]
[1760147126709,0.43282404,111390.0,111380.0,0.13363]
[1760147126906,0.07202404,111390.0,111380.0,0.6232778]
[1760147127100,0.00052,111390.0,111380.0,0.9840778]
[1760147127401,0.00052,111390.0,111380.0,0.5840778]
[1760147127607,0.4509598,111390.0,111380.0,0.11]
[1760147128109,0.8509598,111390.0,111380.0,0.11]
[1760147128306,0.94791646,111390.0,111380.0,0.11]
[1760147129000,0.94791646,111390.0,111380.0,0.0710723]
[1760147129199,0.97915672,111390.0,111380.0,0.0710723]
[1760147129400,0.99480453,111390.0,111380.0,0.0710723]
[1760147129601,0.99480453,111390.0,111380.0,0.0357334]
[1760147129809,0.99480453,111390.0,111380.0,3.4e-06]
[1760147130210,0.95199971,111390.0,111380.0,3.4e-06]
[1760147130405,0.93657385,111390.0,111380.0,3.4e-06]
[1760147130605,0.90511164,111390.0,111380.0,3.4e-06]
[1760147131110,0.54791646,111390.0,111380.0,3.4e-06]
[1760147131309,0.52425646,111390.0,111380.0,3.4e-06]
[1760147131711,0.07381666,111390.0,111380.0,0.1132812]
[1760147132010,0.07381666,111390.0,111380.0,0.4236334]
[1760147132212,0.43461666,111390.0,111380.0,0.0236334]
[1760147132715,0.52425636,111390.0,111380.0,0.0236334]
[1760147133012,0.93801636,111390.0,111380.0,0.11]
[1760147133205,0.96947917,111390.0,111380.0,0.11]
[1760147134414,0.52425636,111390.0,111380.0,0.11]
[1760147134608,0.95571917,111390.0,111380.0,0.11]
[1760147134807,0.96947917,111390.0,111380.0,0.11]
[1760147135912,1.01636724,111390.0,111380.0,0.11]
[1760147136214,0.55571917,111390.0,111380.0,0.11]
[1760147136408,0.96947917,111390.0,111380.0,0.11]
[1760147137510,0.55571917,111390.0,111380.0,0.11]
[1760147137817,0.52425636,111390.0,111380.0,0.11]
[1760147138502,0.52425636,111390.0,111380.0,0.13265]
[1760147138913,0.43461666,111390.0,111380.0,0.2222977]
[1760147139109,0.07381666,111390.0,111380.0,0.6222977]
[1760147139307,0.07381666,111390.0,111380.0,0.9830977]
[1760147139809,0.00052,111390.0,111380.0,0.5830977]
[1760147140408,0.00052,111390.0,111380.0,0.49345]
[1760147140615,0.00052,111390.0,111380.0,0.5830978]
[1760147140818,0.00052,111390.0,111380.0,0.2222978]
[1760147141016,0.0901598,111390.0,111380.0,0.13265]
[1760147141210,0.0901598,111390.0,111380.0,0.53265]
[1760147141704,0.4509598,111390.0,111380.0,0.13265]
[1760147142611,0.0901598,111390.0,111380.0,0.13265]
[1760147142809,0.4509598,111390.0,111380.0,0.13265]
[1760147143311,0.5219763,111390.0,111380.0,0.11]
[1760147144315,0.9219763,111390.0,111380.0,0.11]
[1760147145414,0.4323365,111390.0,111380.0,0.53265]
[1760147145716,0.5219763,111390.0,111380.0,0.53265]
[1760147146014,0.5219763,111390.0,111380.0,0.13265]
[1760147146706,0.1611763,111390.0,111380.0,0.13265]
[1760147146913,0.0715365,111390.0,111380.0,0.6222979]
[1760147147213,0.0715365,111390.0,111380.0,0.9830979]
[1760147148017,0.00052,111400.0,111390.0,0.0896398]
[1760147148320,0.4504157,111420.0,111410.0,0.02265]
[1760147148611,0.8271071,111420.0,111410.0,0.12]
[1760147148813,0.8414771,111420.0,111410.0,0.12]
[1760147149008,1.27293991,111420.0,111410.0,0.0924949]
[1760147149409,0.0896398,111390.0,111380.0,0.01]
[1760147149609,1.2112398,111390.0,111380.0,0.13]
[1760147150816,0.8112398,111390.0,111380.0,0.13]
[1760147151308,0.4504349,111400.0,111380.0,0.6426478]
[1760147151508,0.0896398,111390.0,111380.0,0.153]
[1760147151713,0.4504398,111390.0,111380.0,0.13]
[1760147152318,1.26911055,111390.0,111380.0,0.13]
[1760147153814,1.28486055,111390.0,111380.0,0.13]
[1760147154115,1.28486055,111390.0,111350.0,0.53757259]
[1760147154116,0.089664,111360.0,111350.0,0.09648]
[1760147154319,0.450984,111360.0,111350.0,0.143]
[1760147154621,0.36132,111360.0,111350.0,0.143]
[1760147154816,0.00052,111360.0,111350.0,0.143]
[1760147155015,0.850984,111360.0,111350.0,0.12]
[1760147155320,1.26965475,111360.0,111350.0,0.12]
[1760147155514,1.29190475,111360.0,111350.0,0.12]
[1760147155815,1.32336756,111360.0,111350.0,0.12]
[1760147156722,0.90469681,111360.0,111350.0,0.12]
[1760147157019,1.32336756,111360.0,111350.0,0.12]
[1760147157419,0.50469681,111360.0,111350.0,0.12]
[1760147157917,1.32336756,111360.0,111350.0,0.12]
[1760147158818,0.450984,111360.0,111350.0,0.12]
[1760147159416,0.92336756,111360.0,111350.0,0.12]
[1760147159622,0.50469681,111360.0,111350.0,0.12]
[1760147159820,1.32336756,111360.0,111350.0,0.12]
[1760147160325,0.92336756,111360.0,111350.0,0.12]
[1760147160515,1.32336756,111360.0,111350.0,0.12]
[1760147160721,0.50469681,111360.0,111350.0,0.12]
[1760147160922,0.92336756,111360.0,111350.0,0.12]
[1760147161119,0.48244681,111360.0,111350.0,0.12]
[1760147161915,0.50469681,111360.0,111350.0,0.12]
[1760147162228,0.00052,111360.0,111350.0,0.632672]
[1760147162425,0.450984,111360.0,111350.0,0.143]
[1760147162719,0.36132,111360.0,111350.0,0.143]
[1760147162922,0.090184,111360.0,111350.0,0.143]
[1760147163125,0.450984,111360.0,111350.0,0.12]
[1760147163820,0.86965475,111360.0,111350.0,0.12]
[1760147164020,0.89190475,111360.0,111350.0,0.12]
[1760147164622,1.29190475,111360.0,111350.0,0.12]
[1760147165025,0.873234,111360.0,111350.0,0.12]
[1760147165224,0.450984,111360.0,111350.0,0.12]
[1760147165622,0.36132,111360.0,111350.0,0.143]
[1760147165825,0.00052,111360.0,111350.0,1.41214275]
[1760147166027,0.450444,111390.0,111370.0,0.023]
[1760147166028,0.3608,111390.0,111370.0,0.023]
[1760147166231,0.4504318,111400.0,111390.0,0.023]
[1760147166533,0.4504318,111400.0,111390.0,0.133]
[1760147166534,0.36132,111400.0,111390.0,0.133]
[1760147166831,1.29187255,111400.0,111390.0,0.11]
[1760147167423,0.89187255,111400.0,111390.0,0.11]
[1760147167626,0.4732018,111400.0,111390.0,0.11]
[1760147167926,0.89187255,111400.0,111390.0,0.11]
[1760147168120,0.4732018,111400.0,111390.0,0.11]
[1760147168326,0.36132,111400.0,111390.0,0.1996398]
[1760147168522,0.36132,111400.0,111390.0,0.2210398]
[1760147168726,0.36132,111400.0,111390.0,0.1314]
[1760147168929,0.36132,111400.0,111390.0,0.6210398]
[1760147169125,0.00052,111400.0,111390.0,0.6210398]
[1760147169422,0.36132,111400.0,111390.0,0.1314]
[1760147169627,0.36132,111400.0,111390.0,0.2210398]
[1760147170123,0.00052,111400.0,111390.0,0.6210398]
[1760147170720,0.00052,111400.0,111390.0,1.40051055]
[1760147170928,0.08974178,111420.0,111410.0,0.0214]
[1760147171132,0.00052,111420.0,111410.0,0.1514]
[1760147171429,0.00052,111420.0,111410.0,0.6410237]
[1760147171627,1.31021543,111420.0,111410.0,0.13]
[1760147171933,0.8509357,111420.0,111410.0,0.13]
[1760147172722,1.26960645,111420.0,111410.0,0.13]
[1760147173035,1.29143645,111420.0,111410.0,0.13]
[1760147173629,0.8727657,111420.0,111410.0,0.13]
[1760147173822,0.36132,111420.0,111410.0,0.13]
[1760147174029,0.00052,111420.0,111410.0,0.6410237]
[1760147174330,0.00052,111420.0,111410.0,1.05969445]
[1760147174526,0.00052,111420.0,111410.0,0.2410237]
[1760147174836,0.4727657,111420.0,111410.0,0.13]
[1760147175129,1.29143645,111420.0,111410.0,0.13]
[1760147175634,0.8727657,111420.0,111410.0,0.13]
[1760147175831,1.29143645,111420.0,111410.0,0.13]
[1760147176333,1.29143645,111420.0,111410.0,0.0181373]
[1760147176629,0.0896237,111410.0,111370.0,0.0214]
[1760147176833,0.3608,111380.0,111370.0,0.1514]
[1760147177433,0.4504479,111380.0,111370.0,0.1514]
[1760147177829,1.64124865,111380.0,111370.0,0.0455277]
[1760147178629,0.8112479,111380.0,111370.0,0.0455277]
[1760147178821,0.8112479,111380.0,111370.0,0.0669277]
[1760147179025,0.4504479,111380.0,111370.0,0.0669277]
[1760147179229,0.0896559,111370.0,111360.0,0.0214]
[1760147179524,0.4504559,111370.0,111360.0,0.12]
[1760147180233,0.4504559,111370.0,111360.0,0.1414]
[1760147180735,0.4504559,111370.0,111360.0,0.12]
[1760147181037,1.28045665,111370.0,111360.0,0.12]
[1760147181527,0.4504559,111370.0,111360.0,0.12]
[1760147181727,0.3608,111370.0,111360.0,0.96007075]
[1760147182034,0.36132,111370.0,111360.0,0.96007075]
[1760147182628,0.36132,111370.0,111360.0,0.5414]
[1760147182629,0.4509758,111370.0,111360.0,0.5414]
[1760147183430,0.36132,111370.0,111360.0,1.04973455]
[1760147183630,0.36132,111370.0,111360.0,1.41053455]
[1760147183631,0.00052,111370.0,111360.0,1.41053455]
[1760147183832,0.4504343,111400.0,111390.0,0.0214]
[1760147184033,0.4509543,111400.0,111390.0,0.1414]
[1760147185228,0.0901543,111400.0,111390.0,0.1414]
[1760147185424,0.00052,111400.0,111390.0,1.41051025]
[1760147185736,0.52326191,111430.0,111420.0,0.0214]
[1760147185931,0.4509273,111430.0,111420.0,0.1414]
[1760147186333,0.8509273,111430.0,111420.0,0.12]
[1760147186538,1.28144805,111430.0,111420.0,0.12]
[1760147187133,0.8627773,111430.0,111420.0,0.12]
[1760147188538,0.93276491,111430.0,111420.0,0.06348]
[1760147188834,1.35143566,111430.0,111420.0,0.06348]
[1760147189337,0.95143566,111430.0,111420.0,0.06348]
[1760147189734,0.0896235,111410.0,111400.0,0.0214]
[1760147189936,0.0896316,111400.0,111390.0,0.0214]
[1760147190136,0.86910235,111400.0,111390.0,0.11]
[1760147190330,1.28043235,111400.0,111390.0,0.0108888]
[1760147190528,1.28043235,111400.0,111390.0,1e-07]
[1760147190733,0.88043235,111400.0,111390.0,1e-07]
[1760147191035,0.4504316,111400.0,111390.0,0.0214001]
[1760147191439,0.3608,111400.0,111390.0,0.4214001]
[1760147191640,0.3608,111410.0,111400.0,0.0214]
[1760147191836,0.3608,111410.0,111400.0,0.1414]
[1760147192537,0.07050761,111430.0,111420.0,0.0214]
[1760147192733,0.07050761,111430.0,111420.0,1.04968625]
[1760147192932,0.52091501,111430.0,111420.0,0.12]
[1760147193137,0.43130761,111430.0,111420.0,0.5414]
[1760147193337,0.52091501,111430.0,111420.0,0.5414]
[1760147193638,0.00052,111450.0,111440.0,0.1109994]
[1760147193844,0.00052,111460.0,111440.0,0.92087075]
[1760147194139,0.00052,111460.0,111450.0,0.41867075]
[1760147194442,0.4509033,111460.0,111450.0,0.12]
[1760147195141,0.52099373,111460.0,111450.0,0.12]
[1760147195836,0.92099373,111460.0,111450.0,0.12]
[1760147196031,0.52099373,111460.0,111450.0,0.12]
[1760147196435,0.52099373,111460.0,111450.0,0.52]
[1760147196436,0.43141043,111460.0,111450.0,0.52]
[1760147196637,0.52099373,111460.0,111450.0,0.12]
[1760147197143,0.92099373,111460.0,111450.0,0.12]
[1760147197338,1.35099448,111460.0,111450.0,0.03070748]
[1760147197639,0.0896074,111430.0,111420.0,0.01]
[1760147197943,0.8112074,111430.0,111420.0,0.13]
[1760147198134,1.2112074,111430.0,111420.0,0.13]
[1760147198337,0.8112074,111430.0,111420.0,0.13]
[1760147202846,0.8112074,111430.0,111420.0,0.55258]
[1760147202847,0.7216,111430.0,111420.0,0.55258]
[1760147203147,0.3608,111430.0,111420.0,0.55258]
[1760147203441,0.4504076,111430.0,111420.0,0.15258]
[1760147203835,0.4504076,111430.0,111420.0,0.13]
[1760147204941,0.3608,111440.0,111420.0,0.13]
[1760147204942,0.4503996,111440.0,111430.0,0.02258]
[1760147205142,0.0895965,111450.0,111440.0,0.02258]
[1760147205347,0.4503965,111450.0,111440.0,0.15258]
[1760147207043,0.4503965,111450.0,111440.0,0.13]
[1760147207044,1.26906725,111450.0,111440.0,0.13]
[1760147207244,1.28091725,111450.0,111440.0,0.000768]
[1760147208846,0.0896157,111420.0,111410.0,0.03258]
[1760147209047,0.4504157,111420.0,111410.0,0.16499079]
[1760147209843,0.3608,111420.0,111410.0,0.58904725]
[1760147210035,0.4504157,111420.0,111410.0,0.58904725]
[1760147210241,0.4504157,111420.0,111410.0,0.18904725]
[1760147211646,0.4504157,111420.0,111410.0,0.58904725]
[1760147212052,0.4504157,111420.0,111410.0,0.18904725]
[1760147213248,0.4509357,111420.0,111410.0,0.18904725]
[1760147213546,0.36132,111420.0,111410.0,0.62121009]
[1760147213841,0.4509357,111420.0,111410.0,0.62121009]
[1760147214344,0.36132,111420.0,111410.0,0.59715363]
[1760147214543,0.00052,111420.0,111410.0,1.01541449]
[1760147214747,0.00052,111420.0,111410.0,1.04754942]
[1760147215050,0.3608,111440.0,111430.0,0.1129276]
[1760147215244,0.36132,111440.0,111430.0,0.23392624]
[1760147215545,0.00052,111440.0,111430.0,0.18573079]
[1760147215942,0.00052,111440.0,111430.0,0.23391732]
[1760147215943,0.0901196,111440.0,111430.0,0.23391732]
[1760147216145,0.00052,111440.0,111430.0,0.32352492]
[1760147216342,0.00052,111440.0,111430.0,0.63391732]